bitfinex/quotes_ETHUSD_20250909
["timestamp","ask_amount","ask_price","bid_price","bid_amount"]
[1757385417497,1.2484,4289.6,4289.5,2.33127404]
[1757385421081,1.2494,4289.6,4289.5,2.33127404]
[1757385423118,0.3083,4289.6,4289.5,2.33127404]
[1757385423359,0.001,4289.6,4289.5,5.62647404]
[1757385425358,0.001,4289.6,4289.5,7.45730749]
[1757385428259,0.001,4289.6,4289.5,6.98680749]
[1757385437139,0.001,4289.6,4289.5,10.88380749]
[1757385447288,0.025,4289.8,4289.7,2.33116534]
[1757385447402,0.025,4289.8,4289.7,9.22716534]
[1757385447607,0.4696,4290.6,4290.2,2.33089366]
[1757385448170,0.116,4290.7,4290.6,2.33067636]
[1757385448459,0.4165,4290.7,4290.6,2.33067636]
[1757385448952,1.3596,4290.7,4290.6,2.33067636]
[1757385449172,0.116,4290.7,4290.6,2.33067636]
[1757385449310,0.04,4291.9,4290.7,5.33062204]
[1757385449311,0.4696,4291.7,4290.7,5.33062204]
[1757385449662,0.9431,4291.6,4291.5,3.58478642]
[1757385449825,1.2436,4291.6,4291.5,3.58478642]
[1757385450007,0.156,4291.9,4291.7,2.33007898]
[1757385450206,0.04,4291.9,4291.7,2.33007898]
[1757385451426,0.04,4291.9,4291.7,2.64077898]
[1757385451623,0.04,4291.9,4291.7,5.64077898]
[1757385452030,0.04,4291.9,4291.7,6.8952221]
[1757385452215,0.04,4291.9,4291.7,5.64077898]
[1757385452772,0.04,4291.9,4291.7,6.15149436]
[1757385453061,0.04,4291.9,4291.7,7.52193748]
[1757385453365,0.04,4291.9,4291.7,10.16349436]
[1757385453914,0.04,4291.9,4291.7,11.86023748]
[1757385454231,0.04,4291.9,4291.7,10.60579436]
[1757385454758,0.04,4291.9,4291.7,10.16349436]
[1757385456044,0.04,4291.9,4291.7,6.26749436]
[1757385456242,0.04,4291.9,4291.7,10.16249436]
[1757385459167,0.00489358,4291.8,4291.7,10.16249436]
[1757385461262,0.00489358,4291.8,4291.7,6.26749436]
[1757385461461,0.00489358,4291.8,4291.7,10.16249436]
[1757385461823,0.00489358,4291.8,4291.7,10.60479436]
[1757385462648,0.04,4291.9,4291.8,2.33002469]
[1757385462814,0.04,4291.9,4291.8,3.57435814]
[1757385463014,0.04,4291.9,4291.8,3.88505814]
[1757385465161,0.141,4292.8,4292.4,2.329699]
[1757385465362,0.025,4292.8,4292.7,2.32953618]
[1757385465569,0.025,4292.8,4292.7,7.10778091]
[1757385465785,0.025,4292.8,4292.7,6.21378091]
[1757385465786,1.2463,4292.8,4292.7,6.21378091]
[1757385466092,1.2463,4292.8,4292.7,10.10778091]
[1757385466436,1.2463,4292.8,4292.7,6.21378091]
[1757385466638,1.2463,4292.8,4292.7,10.10778091]
[1757385467239,1.2463,4292.8,4292.7,6.21378091]
[1757385467436,1.2463,4292.8,4292.7,10.10778091]
[1757385467654,1.2463,4292.8,4292.7,9.33953618]
[1757385468227,1.2463,4292.8,4292.7,5.44553618]
[1757385468429,1.2463,4292.8,4292.7,9.33953618]
[1757385469788,1.2463,4292.8,4292.7,5.44553618]
[1757385469972,1.2463,4292.8,4292.7,9.33953618]
[1757385470971,1.2463,4292.8,4292.7,5.44553618]
[1757385471190,1.2463,4292.8,4292.7,9.22353618]
[1757385471394,0.7722,4292.8,4292.7,9.22353618]
[1757385471714,1.2463,4292.8,4292.7,9.22353618]
[1757385472249,1.2463,4292.8,4292.7,5.32953618]
[1757385473007,1.2463,4292.8,4292.4,0.116]
[1757385473148,1.2463,4292.8,4292.4,3.0]
[1757385473348,0.9273,4292.7,4292.6,2.32959045]
[1757385473550,1.2213,4292.7,4292.6,2.32959045]
[1757385473990,0.7472,4292.7,4292.6,2.32959045]
[1757385474196,1.2213,4292.7,4292.3,3.0]
[1757385474348,0.9273,4292.6,4292.5,2.32964359]
[1757385474554,1.2213,4292.6,4292.5,2.32964359]
[1757385478286,0.7482,4292.6,4292.5,2.32964359]
[1757385478605,1.2223,4292.6,4292.5,2.32964359]
[1757385481834,0.295,4292.6,4292.5,2.32964359]
[1757385482138,0.001,4292.6,4292.5,2.32964359]
[1757385482929,0.001,4292.6,4292.5,5.63104359]
[1757385483532,0.001,4292.6,4292.5,5.32964359]
[1757385484303,0.001,4292.6,4292.5,5.63104359]
[1757385484644,0.001,4292.6,4292.5,6.88548671]
[1757385484856,0.796,4292.6,4292.5,4.25444312]
[1757385485137,1.2592,4292.6,4292.5,3.0]
[1757385485335,1.2592,4292.6,4292.5,5.32964472]
[1757385486089,1.2592,4292.6,4292.5,6.58408784]
[1757385488338,1.40322,4292.6,4292.5,1.25444312]
[1757385488540,0.116,4292.5,4292.3,3.0]
[1757385488833,1.0608,4292.5,4292.3,2.32974593]
[1757385489037,1.0608,4292.5,4292.2,1.25444312]
[1757385489038,0.3134,4292.4,4292.2,1.25444312]
[1757385489246,1.2582,4292.4,4292.2,1.25444312]
[1757385489413,1.2582,4292.4,4291.6,2.33013293]
[1757385489414,1.07072,4292.3,4291.6,2.33013293]
[1757385489608,1.07072,4292.3,4291.7,2.33006871]
[1757385489972,0.3134,4291.8,4291.7,2.33006871]
[1757385490112,0.9448,4292.2,4291.7,2.33006871]
[1757385490315,0.3134,4291.8,4291.7,2.33006871]
[1757385491409,0.3134,4291.8,4291.5,5.33013447]
[1757385491748,0.4816,4291.7,4291.5,3.0]
[1757385491948,0.001,4292.6,4291.6,0.3014]
[1757385492256,0.001,4292.6,4292.5,2.32964472]
[1757385494048,0.3144,4292.6,4292.1,1.25444312]
[1757385494202,0.9448,4292.5,4292.0,5.14744312]
[1757385494393,0.9448,4292.5,4292.0,3.893]
[1757385494898,0.9448,4292.5,4292.1,2.32986183]
[1757385495313,0.9448,4292.5,4292.2,2.32977858]
[1757385496121,0.9448,4292.5,4292.0,3.893]
[1757385496122,0.9448,4292.5,4292.0,2.32990692]
[1757385496462,0.9448,4292.4,4292.1,2.32985295]
[1757385496601,0.9448,4292.4,4292.2,2.32979463]
[1757385496939,0.4816,4292.4,4292.2,2.32979463]
[1757385497534,0.001,4292.6,4292.2,2.32979463]
[1757385497739,0.4816,4292.5,4292.2,2.32979463]
[1757385497934,0.9448,4292.5,4292.2,2.32979443]
[1757385498548,0.9448,4292.5,4292.1,2.32985642]
[1757385498757,0.9448,4292.5,4292.2,2.32980747]
[1757385499379,1.0608,4292.5,4292.2,2.32980747]
[1757385500356,0.3134,4292.3,4292.2,2.32980747]
[1757385500537,1.0608,4292.5,4292.2,2.32980747]
[1757385501741,1.0608,4292.5,4292.3,2.32975056]
[1757385501971,0.116,4292.5,4292.4,0.3014]
[1757385502239,0.116,4292.5,4292.4,2.329699]
[1757385503301,0.116,4292.5,4292.4,2.631099]
[1757385507489,0.116,4292.5,4292.4,3.59870313]
[1757385507688,0.001,4292.6,4292.5,2.32964472]
[1757385508307,0.001,4292.6,4292.5,2.63104472]
[1757385509397,0.001,4292.6,4292.5,3.09174472]
[1757385509710,0.001,4292.6,4292.5,4.30088382]
[1757385510260,0.001,4292.6,4292.5,3.84018382]
[1757385510526,0.001,4292.6,4292.5,5.09462694]
[1757385510825,1.2592,4292.6,4292.4,2.32965112]
[1757385511027,0.9448,4292.5,4292.2,1.25444312]
[1757385511165,0.02334554,4292.4,4292.1,1.25444312]
[1757385511508,0.29,4292.2,4292.0,1.25444312]
[1757385511803,0.7342,4292.2,4292.1,5.32985]
[1757385512362,1.2047,4292.2,4292.1,5.32985]
[1757385513262,1.2047,4292.2,4292.1,6.58429312]
[1757385513506,1.2047,4292.2,4292.1,5.32985]
[1757385514440,0.4442,4292.5,4292.3,2.32971629]
[1757385514637,1.2047,4292.4,4292.3,2.32971629]
[1757385515424,0.7605,4292.4,4292.3,2.32971629]
[1757385515920,0.7605,4292.4,4292.2,2.3298075]
[1757385516125,0.4442,4292.3,4292.2,2.3298075]
[1757385516328,1.2047,4292.3,4292.2,5.3298075]
[1757385516747,0.7605,4292.3,4292.2,5.3298075]
[1757385517052,0.29,4292.3,4292.2,5.3298075]
[1757385517254,0.4442,4292.5,4292.4,2.329699]
[1757385517558,0.9147,4292.5,4292.3,2.32975307]
[1757385517847,0.9147,4292.4,4292.3,2.32975307]
[1757385518052,1.2047,4292.4,4292.3,2.32975307]
[1757385519748,1.2047,4292.4,4292.2,5.32979952]
[1757385519933,0.9147,4292.3,4291.9,3.58440371]
[1757385520155,0.116,4292.2,4292.0,2.3299106]
[1757385520338,1.0307,4292.2,4292.0,2.3299106]
[1757385520523,0.29,4292.1,4292.0,2.3299106]
[1757385521825,0.5865,4292.2,4291.9,1.25444312]
[1757385522054,0.5865,4292.2,4292.0,2.32987108]
[1757385522372,0.5865,4292.2,4292.0,2.3298638]
[1757385522567,0.5865,4292.2,4291.9,1.25444312]
[1757385522755,0.5865,4292.2,4292.0,2.32991612]
[1757385522959,0.116,4292.2,4292.1,0.3062]
[1757385523157,0.116,4292.2,4292.1,4.47816926]
[1757385523361,0.001,4292.6,4292.5,2.32964472]
[1757385523868,0.001,4292.6,4292.5,2.63584472]
[1757385524829,0.001,4292.6,4292.5,4.32168784]
[1757385525133,0.001,4292.6,4292.5,3.89028784]
[1757385525676,0.001,4292.6,4292.5,2.63584472]
[1757385526446,0.001,4292.6,4292.5,5.26167408]
[1757385527726,0.001,4292.6,4292.5,4.83027408]
[1757385527933,0.001,4292.6,4292.5,1.25393087]
[1757385528236,0.001,4292.6,4292.5,3.58357559]
[1757385528437,0.001,4292.6,4292.5,3.88977559]
[1757385531748,0.001,4292.6,4292.5,2.63584472]
[1757385531953,0.001,4292.6,4292.5,3.88977559]
[1757385534204,0.001,4292.6,4292.5,3.58357559]
[1757385534371,0.001,4292.6,4292.5,2.32964472]
[1757385534372,0.291,4292.6,4292.5,2.32964472]
[1757385534904,0.001,4292.6,4292.5,2.32964472]
[1757385536207,0.001,4292.6,4292.5,2.63584472]
[1757385537889,0.291,4292.6,4292.4,1.25393087]
[1757385538116,0.291,4292.6,4292.4,3.583594]
[1757385538469,0.4705,4292.5,4292.4,1.25393087]
[1757385538669,1.2047,4292.5,4292.4,1.25393087]
[1757385539105,1.3207,4292.5,4292.3,3.58367574]
[1757385539269,0.9147,4292.4,4292.3,1.25393087]
[1757385539470,0.9147,4292.4,4292.2,1.25393087]
[1757385539707,0.9147,4292.3,4292.2,1.25393087]
[1757385539912,1.2047,4292.3,4291.9,1.25393087]
[1757385540095,1.2047,4292.3,4291.8,0.002]
[1757385540096,1.05404554,4292.2,4291.8,0.002]
[1757385540415,2.4459704,4291.9,4291.8,0.002]
[1757385540567,2.7359704,4291.9,4291.8,0.002]
[1757385540768,3.6506704,4291.9,4291.8,0.002]
[1757385540970,5.43225876,4291.9,4291.8,0.002]
[1757385541177,5.65033735,4291.9,4291.8,0.002]
[1757385541419,5.65006526,4291.9,4291.8,0.002]
[1757385541580,5.65006642,4291.9,4291.8,0.002]
[1757385542519,5.43225876,4291.9,4291.8,0.002]
[1757385552104,9.32525876,4291.9,4291.8,0.002]
[1757385553024,8.88105876,4291.9,4291.8,0.002]
[1757385553337,6.3389704,4291.9,4291.8,0.3054]
[1757385553834,7.1319704,4291.9,4291.8,0.002]
[1757385554619,7.9179704,4291.9,4291.8,0.002]
[1757385556255,8.3679704,4291.9,4291.8,0.002]
[1757385556542,9.43775431,4291.9,4291.8,0.002]
[1757385559210,12.43775431,4291.9,4291.8,0.002]
[1757385560452,11.98775431,4291.9,4291.8,0.002]
[1757385560752,11.20175431,4291.9,4291.8,0.002]
[1757385561556,11.95995431,4291.9,4291.8,0.002]
[1757385561766,11.50995431,4291.9,4291.8,0.002]
[1757385564952,4.61695431,4291.9,4291.8,0.002]
[1757385565161,8.50995431,4291.9,4291.8,0.002]
[1757385566366,8.20175431,4291.9,4291.8,0.002]
[1757385567141,8.20175431,4291.9,4291.8,0.3054]
[1757385567345,7.1319704,4291.9,4291.8,0.3054]
[1757385567575,7.1319704,4291.9,4291.8,0.002]
[1757385567943,6.2239704,4291.9,4291.8,0.3054]
[1757385572152,3.1229704,4291.9,4291.8,0.3054]
[1757385572355,7.0159704,4291.9,4291.8,0.3054]
[1757385573622,7.99833635,4291.9,4291.8,0.002]
[1757385573825,8.29573635,4291.9,4291.8,0.002]
[1757385574904,7.99833635,4291.9,4291.8,0.002]
[1757385575081,9.21523635,4291.9,4291.8,0.002]
[1757385575297,9.433398,4291.9,4291.8,0.002]
[1757385576118,8.978098,4291.9,4291.8,0.002]
[1757385576422,9.433398,4291.9,4291.8,0.002]
[1757385577056,8.513898,4291.9,4291.8,0.002]
[1757385577230,7.99833635,4291.9,4291.8,0.3066]
[1757385579099,7.99833635,4291.9,4291.8,0.002]
[1757385582137,0.001,4291.9,4291.8,0.3066]
[1757385582441,3.894,4291.9,4291.8,1.213]
[1757385583059,3.894,4291.9,4291.8,0.7741]
[1757385583237,3.894,4291.9,4291.8,0.3066]
[1757385583436,6.2239704,4291.9,4291.8,0.002]
[1757385583677,6.2239704,4291.9,4291.8,0.3066]
[1757385583966,7.0159704,4291.9,4291.8,0.3066]
[1757385584165,7.0159704,4291.9,4291.8,0.002]
[1757385585166,4.686,4291.9,4291.8,0.3066]
[1757385585369,4.686,4291.9,4291.8,0.7741]
[1757385585572,4.686,4291.9,4291.8,0.3066]
[1757385589252,7.0159704,4291.9,4291.8,0.3066]
[1757385589472,4.686,4291.9,4291.8,0.3066]
[1757385591371,3.894,4291.9,4291.8,0.3066]
[1757385592527,3.894,4291.9,4291.8,1.213]
[1757385593032,3.894,4291.9,4291.8,0.7741]
[1757385593234,0.001,4291.9,4291.8,3.42984341]
[1757385593429,0.001,4291.9,4291.8,1.56731872]
[1757385593734,0.001,4291.9,4291.8,3.89734341]
[1757385596167,0.001,4291.9,4291.8,8.15127428]
[1757385596567,0.001,4291.9,4291.8,6.89734341]
[1757385598089,0.001,4291.9,4291.8,8.14764638]
[1757385598866,0.001,4291.9,4291.8,4.91122169]
[1757385599066,0.7626,4291.9,4291.8,0.002]
[1757385599360,1.2179,4291.9,4291.8,0.002]
[1757385599870,0.2984,4291.9,4291.8,0.002]
[1757385600091,0.2984,4291.9,4291.8,2.33202469]
[1757385600935,0.2984,4291.9,4291.8,0.002]
[1757385601528,0.2984,4291.9,4291.8,2.33202469]
[1757385601989,0.001,4291.9,4291.8,2.33202469]
[1757385602868,0.001,4291.9,4291.8,0.002]
[1757385603068,0.2926,4291.9,4291.8,0.002]
[1757385604976,0.2926,4291.9,4291.8,2.33202469]
[1757385605190,0.2926,4291.9,4291.8,0.002]
[1757385605687,1.2429,4291.9,4291.8,0.002]
[1757385606088,1.3589,4291.9,4291.8,0.002]
[1757385607174,4.4808704,4291.9,4291.8,0.002]
[1757385614142,4.0271704,4291.9,4291.8,0.002]
[1757385614313,4.4808704,4291.9,4291.8,0.002]
[1757385614507,4.0271704,4291.9,4291.8,0.002]
[1757385614708,0.001,4291.9,4291.8,0.3154]
[1757385614926,3.893,4291.9,4291.8,0.3154]
[1757385615538,3.893,4291.9,4291.8,0.7901]
[1757385618110,3.893,4291.9,4291.8,0.3154]
[1757385621776,0.001,4291.9,4291.8,3.55902469]
[1757385621945,3.892,4291.9,4291.8,3.91492716]
[1757385624680,0.001,4291.9,4291.8,3.91492716]
[1757385626536,0.001,4291.9,4291.8,3.44022716]
[1757385626774,0.001,4291.9,4291.8,7.03092716]
[1757385628364,0.001,4291.9,4291.8,6.11732716]
[1757385628967,0.001,4291.9,4291.8,6.59202716]
[1757385629697,0.001,4291.9,4291.8,5.68792716]
[1757385630782,0.001,4291.9,4291.8,6.00132716]
[1757385638322,0.3094,4291.9,4291.8,5.68792716]
[1757385638527,0.4921,4291.9,4291.8,5.68792716]
[1757385638823,1.2493,4291.9,4291.8,5.33202469]
[1757385639181,0.8005,4291.9,4291.8,5.33202469]
[1757385639488,0.8005,4291.9,4291.8,3.002]
[1757385639688,1.2493,4291.9,4291.8,3.002]
[1757385639898,1.2493,4291.9,4291.8,5.33202469]
[1757385640432,1.2493,4291.9,4291.8,0.002]
[1757385641928,1.2493,4291.9,4291.8,2.33202469]
[1757385642310,0.8005,4291.9,4291.8,2.33202469]
[1757385642523,1.2493,4291.9,4291.8,2.33202469]
[1757385642827,0.001,4291.9,4291.8,2.33202469]
[1757385642994,0.3094,4291.9,4291.8,2.33202469]
[1757385643179,1.2493,4291.9,4291.8,2.33202469]
[1757385643993,1.2493,4291.9,4291.8,0.002]
[1757385644530,1.2493,4291.9,4291.8,2.33202469]
[1757385644734,0.4921,4291.9,4291.8,2.33202469]
[1757385644901,0.001,4291.9,4291.8,2.63502469]
[1757385646224,0.001,4291.9,4291.8,3.55631691]
[1757385647932,0.001,4291.9,4291.8,8.72238438]
[1757385648080,0.001,4291.9,4291.8,7.56731691]
[1757385648528,0.001,4291.9,4291.8,6.67231691]
[1757385650334,0.001,4291.9,4291.8,6.36931691]
[1757385650828,0.001,4291.9,4291.8,6.5826347]
[1757385651207,0.001,4291.9,4291.8,5.33202469]
[1757385651529,0.001,4291.9,4291.8,5.63502469]
[1757385651908,0.001,4291.9,4291.8,6.88578184]
[1757385652109,0.001,4291.9,4291.8,5.63502469]
[1757385653045,1.2493,4291.9,4291.8,6.58286898]
[1757385653798,1.2493,4291.9,4291.8,4.25284429]
[1757385654045,1.2493,4291.9,4291.8,0.002]
[1757385654343,1.2493,4291.9,4291.8,2.63502469]
[1757385654344,0.001,4291.9,4291.8,2.63502469]
[1757385654528,0.001,4291.9,4291.8,2.33202469]
[1757385656040,0.001,4291.9,4291.8,3.22632312]
[1757385656397,0.001,4291.9,4291.8,3.68242312]
[1757385656798,0.001,4291.9,4291.8,6.68242312]
[1757385658001,0.001,4291.9,4291.8,7.23732312]
[1757385659450,0.001,4291.9,4291.8,6.79842312]
[1757385660472,0.3094,4291.9,4291.8,9.92932312]
[1757385660757,0.001,4291.9,4291.8,9.92932312]
[1757385661502,0.001,4291.9,4291.8,10.23232312]
[1757385661832,0.001,4292.4,4292.3,2.32975327]
[1757385662039,0.001,4292.4,4292.3,5.79571201]
[1757385662209,0.001,4292.4,4292.3,6.08301201]
[1757385662409,0.001,4292.4,4292.3,7.33335316]
[1757385662829,0.001,4292.4,4292.3,6.08301201]
[1757385663039,0.001,4292.4,4292.3,5.79571201]
[1757385663348,0.001,4292.4,4292.3,7.33310576]
[1757385663702,0.2964,4292.4,4292.3,7.04580576]
[1757385664348,1.2367,4292.4,4292.3,7.04580576]
[1757385664644,0.7824,4292.4,4292.3,7.04580576]
[1757385665353,0.7824,4292.4,4292.3,5.79571201]
[1757385665857,1.2367,4292.4,4292.3,5.79571201]
[1757385668055,0.7824,4292.4,4292.3,5.79571201]
[1757385668258,1.2367,4292.4,4292.3,5.79571201]
[1757385668958,0.7824,4292.4,4292.3,5.79571201]
[1757385669255,0.001,4292.4,4292.3,6.08301201]
[1757385669458,0.001,4292.4,4292.3,5.79571201]
[1757385670263,0.2964,4292.4,4292.3,5.79571201]
[1757385670996,0.001,4292.4,4292.3,6.08301201]
[1757385671855,0.001,4292.4,4292.3,9.97201201]
[1757385672031,0.026,4292.8,4292.7,2.32953618]
[1757385672252,0.026,4292.8,4292.7,6.39545139]
[1757385674656,0.026,4292.8,4292.7,6.68275139]
[1757385674955,0.026,4292.8,4292.7,8.3622558]
[1757385675158,0.026,4292.8,4292.7,8.36165036]
[1757385675327,0.026,4292.8,4292.7,11.82035036]
[1757385675528,0.026,4292.8,4292.7,12.68955036]
[1757385675944,0.04,4292.9,4292.8,5.32948192]
[1757385676251,0.04,4292.9,4292.8,8.75473584]
[1757385676451,0.04,4292.9,4292.8,9.04203584]
[1757385677744,0.3354,4292.9,4292.8,8.32443584]
[1757385677941,0.04,4292.9,4292.8,10.96506914]
[1757385678516,0.04,4292.9,4292.8,11.25236914]
[1757385679556,0.04,4292.9,4292.8,7.36336914]
[1757385679784,0.04,4292.9,4292.8,11.25236914]
[1757385682020,0.04,4292.9,4292.8,11.36836914]
[1757385686055,0.04,4292.9,4292.8,12.61673584]
[1757385686451,0.04,4292.9,4292.8,13.04703584]
[1757385686768,0.04,4292.9,4292.8,12.61673584]
[1757385688363,0.04,4292.9,4292.8,13.04703584]
[1757385689367,0.04,4292.9,4292.8,11.79866914]
[1757385690244,0.04,4292.9,4292.8,11.36836914]
[1757385690570,0.04,4292.9,4292.8,11.79866914]
[1757385690746,0.04,4292.9,4292.8,11.36836914]
[1757385691457,0.04,4292.9,4292.8,11.08106914]
[1757385692029,1.2726,4292.9,4292.8,11.08006914]
[1757385692451,0.04,4292.9,4292.8,11.08006914]
[1757385692851,0.04,4292.9,4292.8,11.37676914]
[1757385693865,0.041,4292.9,4292.8,11.37676914]
[1757385696465,0.041,4292.9,4292.8,11.08006914]
[1757385698394,0.041,4292.9,4292.8,11.37676914]
[1757385706130,0.4882,4293.3,4293.2,2.32926488]
[1757385706336,0.001,4293.3,4293.2,6.21726488]
[1757385706463,0.001,4293.3,4293.2,6.33326488]
[1757385707476,0.3028,4293.3,4293.2,6.33326488]
[1757385707678,0.7464,4293.3,4293.2,6.33326488]
[1757385707862,1.2336,4293.3,4293.2,6.33326488]
[1757385708889,1.2336,4293.3,4293.2,6.33226488]
[1757385709812,1.2336,4293.3,4293.2,2.44526488]
[1757385710012,1.2336,4293.3,4293.2,6.33226488]
[1757385711881,1.2336,4293.3,4293.2,2.44526488]
[1757385712086,1.2336,4293.3,4293.2,6.33226488]
[1757385714342,1.2336,4293.3,4293.2,4.003]
[1757385714538,1.2336,4293.3,4293.2,5.2557033]
[1757385714699,1.2336,4293.3,4293.2,7.58496818]
[1757385714899,1.2336,4293.3,4293.2,6.33226488]
[1757385715230,1.2336,4293.3,4293.2,4.003]
[1757385715427,1.2336,4293.3,4293.2,0.116]
[1757385715744,1.35696,4293.3,4293.2,1.25274686]
[1757385715940,1.35696,4293.3,4293.1,1.25274686]
[1757385716147,0.9308,4293.2,4293.1,1.25274686]
[1757385716649,1.2326,4293.2,4293.1,1.25274686]
[1757385716947,0.116,4293.1,4292.8,1.25474686]
[1757385717147,0.3018,4292.9,4292.8,1.25474686]
[1757385717294,0.3018,4292.9,4292.8,0.002]
[1757385717496,1.2326,4292.9,4292.8,0.002]
[1757385717944,1.3486,4292.9,4292.8,0.002]
[1757385718125,1.72873418,4292.9,4292.8,0.002]
[1757385718449,1.3486,4292.9,4292.8,0.002]
[1757385718598,3.67802765,4292.9,4292.8,0.002]
[1757385718802,1.3486,4292.9,4292.8,0.002]
[1757385719623,3.67802765,4292.9,4292.8,0.002]
[1757385719824,4.29342815,4292.9,4292.8,0.002]
[1757385720426,1.9640005,4292.9,4292.8,0.002]
[1757385721350,4.31677369,4292.9,4292.8,0.002]
[1757385721518,3.70137319,4292.9,4292.8,0.002]
[1757385721707,1.37194554,4292.9,4292.8,0.002]
[1757385722850,3.70137319,4292.9,4292.8,0.002]
[1757385723653,1.37194554,4292.9,4292.8,0.002]
[1757385723857,4.49557144,4292.9,4292.8,0.002]
[1757385724068,2.16614379,4292.9,4292.8,0.002]
[1757385724960,8.38257144,4292.9,4292.8,0.002]
[1757385725266,6.02979825,4292.9,4292.8,0.002]
[1757385727019,8.3592259,4292.9,4292.8,0.002]
[1757385727581,9.1512259,4292.9,4292.8,0.002]
[1757385730839,6.82179825,4292.9,4292.8,0.002]
[1757385731273,9.1512259,4292.9,4292.8,0.002]
[1757385731882,6.82179825,4292.9,4292.8,0.002]
[1757385732544,9.1512259,4292.9,4292.8,0.002]
[1757385733162,9.1522259,4292.9,4292.8,0.002]
[1757385734681,6.82279825,4292.9,4292.8,0.002]
[1757385735580,9.1522259,4292.9,4292.8,0.002]
[1757385743469,5.59019825,4292.9,4292.8,0.002]
[1757385743805,7.9196259,4292.9,4292.8,0.002]
[1757385744103,8.2304259,4292.9,4292.8,0.002]
[1757385744601,9.1856259,4292.9,4292.8,0.002]
[1757385750794,9.40375368,4292.9,4292.8,0.002]
[1757385751493,9.90629536,4292.9,4292.8,0.002]
[1757385752848,9.40375368,4292.9,4292.8,0.002]
[1757385760795,12.40375368,4292.9,4292.8,0.002]
[1757385761189,12.90569436,4292.9,4292.8,0.002]
[1757385763211,9.01869436,4292.9,4292.8,0.002]
[1757385763371,12.90469436,4292.9,4292.8,0.002]
[1757385764928,12.40275368,4292.9,4292.8,0.002]
[1757385768352,12.40275368,4292.9,4291.4,0.002]
[1757385768353,3.12218758,4291.5,4291.4,0.002]
[1757385768645,11.79618758,4291.5,4291.4,0.002]
[1757385769155,13.02148758,4291.5,4291.4,0.002]
[1757385770175,13.02148758,4291.5,4290.4,0.4429]
[1757385770176,0.792,4291.3,4290.4,0.4429]
[1757385770412,10.03169602,4291.2,4290.4,0.8729]
[1757385770581,10.00835048,4291.2,4290.4,0.8729]
[1757385770786,10.00835048,4291.2,4290.5,0.432]
[1757385771223,10.29525048,4291.2,4290.5,0.002]
[1757385771429,11.65099123,4291.2,4290.5,0.002]
[1757385771917,11.65099123,4291.2,4290.5,0.432]
[1757385771918,10.71259123,4291.2,4290.5,0.432]
[1757385775131,10.42569123,4291.2,4290.5,0.432]
[1757385775489,10.71259123,4291.2,4290.5,0.432]
[1757385777962,11.18189123,4291.2,4290.5,0.002]
[1757385778256,11.65099123,4291.2,4290.5,0.002]
[1757385781021,10.42569123,4291.2,4290.6,0.43]
[1757385781660,3.1224591,4291.0,4290.5,0.002]
[1757385781886,10.82600289,4291.0,4290.5,0.002]
[1757385782183,11.56045735,4291.0,4290.5,0.002]
[1757385782321,11.99955735,4291.0,4290.5,0.002]
[1757385782521,10.80265735,4291.0,4290.5,0.002]
[1757385782943,10.80265735,4291.0,4290.9,0.3058]
[1757385784394,11.54575735,4291.0,4290.9,0.002]
[1757385784518,10.80265735,4291.0,4290.9,0.002]
[1757385784960,10.80265735,4291.0,4290.9,0.3058]
[1757385788274,10.80265735,4291.0,4290.9,0.002]
[1757385789280,10.80265735,4291.0,4290.9,0.3058]
[1757385790039,10.80265735,4291.0,4290.9,0.002]
[1757385792480,11.56045735,4291.0,4290.9,0.002]
[1757385792793,12.21719938,4291.0,4290.9,0.002]
[1757385793029,12.21719938,4291.0,4290.9,0.7468]
[1757385793030,8.79965735,4291.0,4290.9,0.7468]
[1757385793235,8.7974591,4291.0,4290.9,0.3058]
[1757385793726,9.2023591,4291.0,4290.9,0.002]
[1757385794039,14.40704583,4291.0,4290.9,0.002]
[1757385795125,3.12267636,4290.6,4290.5,0.002]
[1757385795348,7.0320219,4290.6,4290.5,0.002]
[1757385795484,7.31267636,4290.6,4290.5,0.002]
[1757385795842,8.20557636,4290.6,4290.5,0.002]
[1757385796045,9.25919373,4290.6,4290.5,0.002]
[1757385796496,12.47704651,4290.6,4290.5,0.002]
[1757385797477,11.28014651,4290.6,4290.5,0.002]
[1757385797720,11.28014651,4290.6,4290.5,0.3058]
[1757385798086,11.28014651,4290.6,4290.5,0.002]
[1757385798505,11.58414651,4290.6,4290.5,0.002]
[1757385798713,11.28014651,4290.6,4290.5,0.002]
[1757385799839,11.28014651,4290.6,4290.5,0.3058]
[1757385800332,7.39414651,4290.6,4290.5,0.3058]
[1757385800532,11.28014651,4290.6,4290.5,0.7468]
[1757385800881,11.28014651,4290.6,4290.5,0.3058]
[1757385801534,12.03794651,4290.6,4290.5,0.002]
[1757385801745,12.47704651,4290.6,4290.5,0.002]
[1757385802302,12.97969378,4290.6,4290.5,0.002]
[1757385802917,6.12273068,4290.5,4290.4,1e-08]
[1757385803123,8.75342012,4290.5,4290.4,1e-08]
[1757385803450,9.95032012,4290.5,4290.4,1e-08]
[1757385805151,9.05742012,4290.5,4290.4,1e-08]
[1757385805530,9.51122012,4290.5,4290.4,1e-08]
[1757385805855,9.95032012,4290.5,4290.4,1e-08]
[1757385806207,9.44772591,4290.5,4290.4,1e-08]
[1757385806682,9.95013449,4290.5,4290.4,1e-08]
[1757385808521,6.12289366,4290.2,4290.1,1e-08]
[1757385808743,12.01574644,4290.2,4290.1,1e-08]
[1757385808930,12.82215502,4290.2,4290.1,1e-08]
[1757385809259,13.71505502,4290.2,4290.1,1e-08]
[1757385810471,13.21264644,4290.2,4290.1,1e-08]